Cogmind - Beta 10.1 @@@ ROGUE MODE // 2020.10.03 @ 19:01:24 Player: HOTSOUP Result: Destroyed by Y-54 Guardian with Flak Gun Performance ------------- Evolutions (3) 1500 Regions Visited (13) 2600 Robots Destroyed (75) 375 Value Destroyed (3173) 3173 Prototype IDs (5) 100 Alien Tech Used (0) 0 Bonus (2054) 2054 TOTAL SCORE: 9802 Bonus ------- High Alert Combat Kills 84 Follower Combat Kills 70 Entered Garrisons 600 Used RIF Installer 1000 Aligned with FarCom 300 Cogmind --------- Core Integrity 0/700 Matter 225/300 Energy 22/100 System Corruption 1% Temperature Cool (0) Movement Flying (100) Ox1 Location -7/Factory Parts ------- > --- POWER (1) -------- (None) > --- PROPULSION (2) --- Cooled VTOL Module > --- UTILITY (8) ------ Target Analyzer Improved Propulsion Shielding Hacking Suite System Shield Relay Coupler [NC] (23) Relay Coupler [Swarmer] (46) Relay Coupler [Grunt] (19) Relay Coupler [Sentry] (22) > --- WEAPON (2) ------- Great Axe > --- INVENTORY (4) ---- Cloak of Protection Precision Grenade Launcher Precision Grenade Launcher Remote Datajack Peak State ------------ > --- POWER ------------ Improved Ion Engine > --- PROPULSION ------- Cesium-ion Thruster Cesium-ion Thruster > --- UTILITY ---------- Weight Redist. System Microactuators Microactuators Improved Propulsion Shielding Hacking Suite System Shield Relay Coupler [NC] Relay Coupler [Grunt] > --- WEAPON ----------- Remote Datajack Great Axe > --- INVENTORY -------- Weight Redist. System Maneuvering Thrusters Cloak of Protection Katana [Rating: 40] Favorites ----------- Power Light Nuclear Core Engine Ion Engine Power Core Light Nuclear Core Propulsion VTOL Module Flight Unit VTOL Module Utility Improved Targeting Computer Device System Backup Module Processor Improved Targeting Computer Hackware Hacking Suite Protection Propulsion Shielding Weapon Great Axe Energy Gun Medium Laser Energy Cannon EM Pulse Cannon Ballistic Gun Improved Assault Rifle Launcher Mini Grenade Launcher Special Weapon Remote Datajack Slashing Weapon Great Axe Special Melee Weapon Improved Datajack Build | -11 -10 -9 -9 -9 -8 -8 -8 -8 -7 -7 -7 -7 -7 ------- Run | Scr Mat Mat Min Exi Min Mat Gar Mat Fac Gar Fac Gar Fac Slots Evolved 6 | . . 2 . . . 2 . . 2 . . . . Power . | . . . . . . . . . . . . . . Propulsion . | . . . . . . . . . . . . . . Utility 6 | . . 2 . . . 2 . . 2 . . . . Weapon . | . . . . . . . . . . . . . . Parts Attached 110 | 2 8 10 . 3 3 3 5 10 9 26 17 7 7 Power 10 | . 2 . . . 2 . . . 1 3 1 1 . Engine 5 | . 2 . . . 2 . . . . . . 1 . Core 5 | . . . . . . . . . 1 3 1 . . Reactor . | . . . . . . . . . . . . . . Propulsion 17 | . 2 . . . . . 2 . 3 5 4 . 1 Treads . | . . . . . . . . . . . . . . Leg . | . . . . . . . . . . . . . . Wheel . | . . . . . . . . . . . . . . Hover . | . . . . . . . . . . . . . . Flight 17 | . 2 . . . . . 2 . 3 5 4 . 1 Utility 47 | . 2 4 . 1 1 3 2 4 2 13 9 5 1 Device 17 | . 1 . . 1 1 1 1 1 1 6 4 . . Storage . | . . . . . . . . . . . . . . Processor 7 | . . 4 . . . 1 . . 1 . . . 1 Hackware 20 | . . . . . . 1 1 3 . 7 3 5 . Protection 3 | . 1 . . . . . . . . . 2 . . Artifact . | . . . . . . . . . . . . . . Weapon 36 | 2 2 6 . 2 . . 1 6 3 5 3 1 5 Energy Gun 7 | 2 1 . . . . . . 1 . 2 1 . . Energy Cannon 3 | . . 2 . 1 . . . . . . . . . Ballistic Gun 5 | . . 3 . 1 . . . . 1 . . . . Ballistic Cannon . | . . . . . . . . . . . . . . Launcher 3 | . 1 1 . . . . . . . . . . 1 Special Weapon 2 | . . . . . . . . . . . . 1 1 Impact Weapon . | . . . . . . . . . . . . . . Slashing Weapon 13 | . . . . . . . . 4 2 3 2 . 2 Piercing Weapon . | . . . . . . . . . . . . . . Special Melee Weapon 3 | . . . . . . . 1 1 . . . . 1 Unidentified Prototypes 5 | . . 1 . 2 . . . . . . . . 2 Parts Lost 33 | . 4 . . . 1 . . 4 8 9 1 6 . Power 5 | . 1 . . . 1 . . . . 1 1 1 . Propulsion 9 | . . . . . . . . 1 1 5 . 2 . Utility 13 | . . . . . . . . 2 6 3 . 2 . Weapon 6 | . 3 . . . . . . 1 1 . . 1 . Highest Loss Streak 5 | . 4 . . . 1 . . 3 3 4 1 5 . Average Slot Usage (%) 71 | . 46 86 100 93 86 79 90 86 46 60 86 81 74 Engine 3 | . 10 11 11 11 9 9 9 5 . . . 2 . Core 2 | . . . . . . . . . . 5 3 . . Flight 13 | . 10 22 22 22 22 18 18 13 4 12 13 11 4 Device 4 | . 2 4 . 5 10 9 7 . . 3 7 14 . Processor 9 | . . 19 33 33 33 32 36 28 6 . . . 1 Hackware 23 | . . . . . . 2 9 24 24 29 44 33 51 Protection 2 | . 2 11 11 5 . . . . . . 4 7 7 Energy Gun 1 | . 12 . . . . . . 2 . . . . . Ballistic Gun 2 | . . 8 11 10 11 9 9 . 1 . . . . Launcher 1 | . 6 6 11 5 . . . . . . . . . Slashing Weapon 5 | . . . . . . . . 6 7 6 10 7 6 Naked Turns 6 | . 6 . . . . . . . . . . . . Heaviest Build 18 | 4 10 15 10 16 16 9 9 8 11 17 12 18 10 Greatest Support 18 | 3 10 10 10 10 10 10 10 10 10 10 18 18 5 Greatest Overweight (x) 2 | 1 2 1 . 1 1 . . 1 2 1 1 1 1 Average Overweight (x) . | . . . . . . . . . . . . . . Largest Inventory Capacity 4 | 4 4 4 4 4 4 4 4 4 4 4 4 4 4 Average Capacity 4 | 4 4 4 4 4 4 4 4 4 4 4 4 4 4 Most Carried 4 | 3 4 4 4 4 4 4 4 4 4 4 4 4 4 Average Carried 3 | 1 3 3 3 4 3 3 3 3 2 3 3 4 3 Final Capacity 4 | 4 4 4 4 4 4 4 4 4 4 4 4 4 4 Final Carried 4 | 3 4 4 4 4 4 4 3 2 4 4 4 4 4 Class Distribution -------------------- 74% | Mutant 22% | Hacker-Mutant Dominant Class ---------------- Mutant | -10/Materials Mutant | -9/Materials Mutant | -9/Mines Mutant | -9/Exiles Mutant | -8/Mines Mutant | -8/Materials Mutant | -8/Garrison Mutant | -8/Materials Hacker-Mutant | -7/Factory Mutant | -7/Garrison Hacker-Mutant | -7/Factory Hacker-Mutant | -7/Garrison Hacker-Mutant | -7/Factory Resources | -11 -10 -9 -9 -9 -8 -8 -8 -8 -7 -7 -7 -7 -7 ----------- Run | Scr Mat Mat Min Exi Min Mat Gar Mat Fac Gar Fac Gar Fac Matter Collected 1725 | 170 78 350 208 . 118 45 . 63 144 279 140 130 . Remotely . | . . . . . . . . . . . . . . Salvage Created 2795 | 95 246 485 330 . 177 59 . 63 203 531 262 344 . Parts 175 | 5 21 43 15 . 10 2 . 5 16 25 17 16 . Haulers Intercepted 6 | . 1 3 . . . 1 . . . . 1 . . Recyclers Shooed 2 | . . 2 . . . . . . . . . . . Parts Field Recycled . | . . . . . . . . . . . . . . Retrieved Matter . | . . . . . . . . . . . . . . Parts Self-Destructed . | . . . . . . . . . . . . . . Prevented . | . . . . . . . . . . . . . . Kills | -11 -10 -9 -9 -9 -8 -8 -8 -8 -7 -7 -7 -7 -7 ------- Run | Scr Mat Mat Min Exi Min Mat Gar Mat Fac Gar Fac Gar Fac Combat Hostiles Destroyed 53 | . 5 12 11 . 3 . . 1 5 11 1 4 . Melee 19 | . . . . . . . . 1 3 10 1 4 . Guns 16 | . 2 2 6 . 3 . . . 2 1 . . . Cannons 3 | . . 3 . . . . . . . . . . . AOE 15 | . 3 7 5 . . . . . . . . . . Classes Destroyed 14 | 2 5 2 1 . . . . 2 . 1 1 . . Worker 4 | . 2 . . . 1 . . . 1 . . . . Builder 1 | . . . . . . . . 1 . . . . . Tunneler 3 | 1 1 . 1 . . . . . . . . . . Hauler 6 | . 1 3 . . . 1 . . . . 1 . . Recycler 3 | 1 . . 1 . . . . . . . 1 . . Operator 1 | . 1 . . . . . . . . . . . . Watcher 4 | . 2 . . . . . . . . . 2 . . Swarmer 16 | . . 4 6 . . . . . 3 3 . . . Grunt 26 | . 5 5 4 . 3 . . . . 7 . 2 . Brawler 1 | . . . . . . . . . . 1 . . . Duelist 1 | . . . 1 . . . . . . . . . . Sentry 4 | . . 3 . . . . . . 1 . . . . Hunter 2 | . . . . . . . . 1 1 . . . . Programmer 3 | . . . . . . . . . . . 1 2 . Best Kill Streak 8 | 2 5 8 4 . 3 1 . 1 2 2 2 2 . Combat Bots Only 7 | . 1 7 3 . 1 . . 1 2 2 1 2 . Max Kills in Single Turn 4 | 1 3 3 4 . 1 1 . 1 1 1 1 1 . Gunslinging . | . . . . . . . . . . . . . . Exploded 3 | . 1 3 3 . . . . . . . . . . Melee 1 | . . . . . . . . 1 1 1 1 1 . Uniques/NPCs Destroyed . | . . . . . . . . . . . . . . Combat | -11 -10 -9 -9 -9 -8 -8 -8 -8 -7 -7 -7 -7 -7 -------- Run | Scr Mat Mat Min Exi Min Mat Gar Mat Fac Gar Fac Gar Fac Damage Taken 2612 | . 364 46 132 . 84 . . 267 530 562 60 562 5 Core 998 | . 141 12 10 . 19 . . 116 217 196 14 268 5 Absorbed by Shields 167 | . . . . . . . . . . 59 . 108 . Core Remaining (%) 77 | 100 43 . . . 89 . . 78 . . . . . Volleys Fired 165 | 9 37 21 36 . 25 5 2 3 9 6 . 11 1 Largest 2 | 2 2 2 2 . 1 1 1 1 1 2 . 1 1 Hottest 130 | 100 100 86 53 . 23 23 23 69 28 130 . 30 30 Shots Fired 203 | 18 49 29 39 . 25 5 2 3 9 12 . 11 1 Gun 160 | 18 36 14 36 . 25 5 2 3 9 12 . . . Cannon 4 | . . 4 . . . . . . . . . . . Launcher 27 | . 13 11 3 . . . . . . . . . . Special 12 | . . . . . . . . . . . . 11 1 Kinetic 91 | . . 14 36 . 25 5 2 . 9 . . . . Thermal 58 | 18 25 . . . . . . 3 . 12 . . . Explosive 27 | . 13 11 3 . . . . . . . . . . Electromagnetic 15 | . 11 4 . . . . . . . . . . . Robot Hit Streak 37 | 4 3 14 20 . 37 12 . 13 6 4 . 8 9 Robot Miss Streak 5 | 2 4 1 2 . 1 . . 1 5 5 . 1 . Penetration Max . | . . . . . . . . . . . . . . Secondary Targets . | . . . . . . . . . . . . . . Shots Hit Robots 183 | 10 12 17 33 . 24 5 . 11 14 26 6 24 1 Core Hits 118 | 3 18 25 19 . 8 1 . 3 15 14 5 7 . Critical Hits 3 | . . . . . 1 . . . . 1 . 1 . Critical Kills 1 | . . . . . . . . . . . . 1 . Critical Parts Destroyed 2 | . . . . . 1 . . . . 1 . . . Melee Attacks 137 | . . . . . . . . 32 11 47 19 21 7 Impact . | . . . . . . . . . . . . . . Slashing 129 | . . . . . . . . 24 11 47 19 21 7 Piercing . | . . . . . . . . . . . . . . Sneak Attacks 6 | . . . . . . . . 1 1 . 3 1 . Combat Hostiles 1 | . . . . . . . . . . . . 1 . Follow-up Attacks 1 | . . . . . . . . . . . 1 . . Damage Inflicted 6471 | 127 873 929 894 . 364 69 . 398 433 927 531 926 . Guns 1686 | 127 152 199 474 . 364 69 . 19 152 130 . . . Cannons 85 | . . 85 . . . . . . . . . . . Explosions 1897 | . 721 645 420 . . . . 111 . . . . . Melee 2803 | . . . . . . . . 268 281 797 531 926 . Ramming . | . . . . . . . . . . . . . . Kinetic 1258 | . . 199 474 . 364 69 . . 152 . . . . Thermal 863 | 127 587 . . . . . . 19 . 130 . . . Explosive 1435 | . 259 645 420 . . . . 111 . . . . . Electromagnetic 112 | . 27 85 . . . . . . . . . . . Impact . | . . . . . . . . . . . . . . Slashing 2803 | . . . . . . . . 268 281 797 531 926 . Piercing . | . . . . . . . . . . . . . . Highest Corruption 6 | . . . . . . . . . 1 6 1 1 1 Average Corruption 2 | . . . . . . . . . 1 2 1 1 1 Corruption Purged 7 | . . . . . . . . . . 7 . . . Effects 24 | . . . . . . . . . . 19 1 2 2 Message Errors 10 | . . . . . . . . . . 7 1 2 . Matter Fused 1 | . . . . . . . . . . 1 . . . Heat Flow Errors 5 | . . . . . . . . . . 5 . . . Energy Discharges 2 | . . . . . . . . . . 2 . . . Data Loss (minor) 5 | . . . . . . . . . . 4 . . 1 Targeting Errors 1 | . . . . . . . . . . . . . 1 Overload Shots . | . . . . . . . . . . . . . . Overflow Damage 272 | . 66 28 34 . . . . 88 . 6 9 41 . Projectiles . | . . . . . . . . . . . . . . Explosions 128 | . 66 28 34 . . . . . . . . . . Melee 144 | . . . . . . . . 88 . 6 9 41 . Knockbacks . | . . . . . . . . . . . . . . Impact . | . . . . . . . . . . . . . . Kinetic . | . . . . . . . . . . . . . . Secondary . | . . . . . . . . . . . . . . Self-Inflicted Damage 27 | . 27 . . . . . . . . . . . . Shots 1 | . 1 . . . . . . . . . . . . Rammed . | . . . . . . . . . . . . . . Targets Rammed . | . . . . . . . . . . . . . . Kicked . | . . . . . . . . . . . . . . Crushed . | . . . . . . . . . . . . . . Highest Temperature 265 | 216 247 42 . . 2 . . 60 . 265 . 6 . Average Temperature 82 | 112 90 18 . . 2 . . 36 . 81 . 5 . Received Heat Transfer 846 | . 180 12 48 . 36 . . 54 60 225 . 231 . Siege Activations . | . . . . . . . . . . . . . . Robots Corrupted . | . . . . . . . . . . . . . . Combat Hostiles . | . . . . . . . . . . . . . . Parts Fried . | . . . . . . . . . . . . . . Impact Corruptions . | . . . . . . . . . . . . . . Robots Melted . | . . . . . . . . . . . . . . Combat Hostiles . | . . . . . . . . . . . . . . Parts Melted 2 | . 1 . . . . . . . . 1 . . . Heat Transferred 1373 | 370 670 . . . . . . 37 . 296 . . . Parts Sabotaged . | . . . . . . . . . . . . . . Parts Stolen . | . . . . . . . . . . . . . . Parts Stripped . | . . . . . . . . . . . . . . Power Chain Reactions . | . . . . . . . . . . . . . . Missiles Intercepted . | . . . . . . . . . . . . . . Alert | -11 -10 -9 -9 -9 -8 -8 -8 -8 -7 -7 -7 -7 -7 ------- Run | Scr Mat Mat Min Exi Min Mat Gar Mat Fac Gar Fac Gar Fac Peak Influence 529 | 10 336 502 529 . 65 64 91 212 107 340 296 280 190 Initial 195 | . 6 141 195 . . 25 41 44 32 . 157 67 147 Average 151 | 2 125 364 394 . 24 38 49 78 41 159 183 145 163 Maximum Alert Level 2 | . 1 2 2 . . . . 1 . 1 1 1 . Low Security (%) 68 | 100 69 6 8 . 100 100 100 93 100 59 71 78 100 Level 1 26 | . 30 59 42 . . . . 6 . 40 28 21 . Level 2 4 | . . 34 48 . . . . . . . . . . Level 3 . | . . . . . . . . . . . . . . Level 4 . | . . . . . . . . . . . . . . Level 5 . | . . . . . . . . . . . . . . High Security . | . . . . . . . . . . . . . . Max Security . | . . . . . . . . . . . . . . Squads Dispatched 15 | . 3 . 1 . . . . 6 3 . 2 . . Investigation 8 | . 3 . 1 . . . . 4 . . . . . Extermination 2 | . . . . . . . . . . . 2 . . Reinforcement 3 | . . . . . . . . 2 1 . . . . Assault . | . . . . . . . . . . . . . . Garrison 2 | . . . . . . . . . 2 . . . . Intercept . | . . . . . . . . . . . . . . Construction Impeded 1 | . . . . . . . . 1 . . . . . Haulers Reinforced . | . . . . . . . . . . . . . . Stealth | -11 -10 -9 -9 -9 -8 -8 -8 -8 -7 -7 -7 -7 -7 --------- Run | Scr Mat Mat Min Exi Min Mat Gar Mat Fac Gar Fac Gar Fac Distress Signals 2 | . . . . . . 1 . 1 . . . . . Communications Jammed . | . . . . . . . . . . . . . . Distress Signals . | . . . . . . . . . . . . . . Times Spotted 117 | . 13 13 12 . 9 1 . 18 8 27 3 11 2 Peak Tracking Total 16 | . 4 4 4 . 4 4 . 16 2 9 2 5 1 Tactical Retreats 20 | . 2 1 1 . 4 . . 8 . 4 . . . Traps | -11 -10 -9 -9 -9 -8 -8 -8 -8 -7 -7 -7 -7 -7 ------- Run | Scr Mat Mat Min Exi Min Mat Gar Mat Fac Gar Fac Gar Fac Traps Triggered 17 | . . . . . . . 4 . 3 6 . 4 . Indirectly . | . . . . . . . . . . . . . . Trap Hack Attempts . | . . . . . . . . . . . . . . Triggered . | . . . . . . . . . . . . . . Disarmed . | . . . . . . . . . . . . . . Reprogrammed 4 | . . . . . . . . 4 . . . . . Reused 3 | . . . . . . . . 3 . . . . . Traps Extracted . | . . . . . . . . . . . . . . Installed 4 | . . . 4 . . . . . . . . . . Triggered 3 | . . . . . . . . 3 . . . . . Machines | -11 -10 -9 -9 -9 -8 -8 -8 -8 -7 -7 -7 -7 -7 ---------- Run | Scr Mat Mat Min Exi Min Mat Gar Mat Fac Gar Fac Gar Fac Machines Disabled 17 | . 5 2 2 . . . 1 3 . 2 . 2 . Max in Single Turn 2 | . 2 1 2 . . . 1 2 . 1 . 1 . Garrison Access 1 | . . . . . . . . 1 . . . . . Garrison Relay 5 | . . . . . . . 1 . . 2 . 2 . Machines Sabotaged . | . . . . . . . . . . . . . . Garrisons Compromised . | . . . . . . . . . . . . . . Overloaded Fab Kills . | . . . . . . . . . . . . . . Fab Network Shutdowns . | . . . . . . . . . . . . . . Hacking | -11 -10 -9 -9 -9 -8 -8 -8 -8 -7 -7 -7 -7 -7 --------- Run | Scr Mat Mat Min Exi Min Mat Gar Mat Fac Gar Fac Gar Fac Machines Accessed 30 | . 7 1 2 . . 3 . 9 4 . 2 . 2 Terminals 17 | . 6 1 . . . 2 . 6 2 . . . . Fabricators . | . . . . . . . . . . . . . . Repair Stations 2 | . . . . . . . . . 1 . . . 1 Recycling Units 1 | . 1 . . . . . . . . . . . . Scanalyzers 3 | . . . . . . . . 2 . . 1 . . Garrison Access 5 | . . . . . . 1 . 1 1 . 1 . 1 Total Hacks 85 | . 21 2 2 . . 9 . 35 9 . 3 . 4 Successful 62 | . 14 1 2 . . 6 . 26 7 . 3 . 3 Failed 23 | . 7 1 . . . 3 . 9 2 . . . 1 Catastrophic 2 | . . . . . . . . 1 . . . . 1 Database Lockouts . | . . . . . . . . . . . . . . Manual 65 | . 19 1 . 1 . 6 . 32 6 . . . . Terminals 64 | . 19 2 . . . 8 . 29 6 . . . . Fabricators . | . . . . . . . . . . . . . . Repair Stations 5 | . . . . . . . . . 2 . . . 3 Recycling Units 2 | . 2 . . . . . . . . . . . . Scanalyzers 7 | . . . . . . . . 5 . . 2 . . Garrison Access 5 | . . . . . . 1 . 1 1 . 1 . 1 Terminal Hacks 26 | . 5 . 2 . . 2 . 15 2 . . . . Record 1 | . . . . . . 1 . . . . . . . Part Schematic 1 | . . . . . . . . 1 . . . . . Robot Schematic 1 | . . . . . . . . . 1 . . . . Robot Analysis 5 | . 2 . . . . . . 3 . . . . . Open Door 2 | . . . 2 . . . . . . . . . . Terminal Index 2 | . 1 . . . . . . 1 . . . . . Alert Level 1 | . . . . . . 1 . . . . . . . Unreport Threat 1 | . . . . . . . . 1 . . . . . Locate Traps 2 | . 2 . . . . . . . . . . . . Reprogram Traps 1 | . . . . . . . . 1 . . . . . Dispatch Records 1 | . . . . . . . . 1 . . . . . Recall Investigation 3 | . . . . . . . . 3 . . . . . Recall Reinforcements 2 | . . . . . . . . 2 . . . . . Hauler Manifests 1 | . . . . . . . . 1 . . . . . Registered Prototypes 1 | . . . . . . . . 1 . . . . . Zone Layout 1 | . . . . . . . . . 1 . . . . Fabricator Hacks . | . . . . . . . . . . . . . . Repair Station Hacks 4 | . . . . . . . . . 2 . . . 2 Scan Component 2 | . . . . . . . . . 1 . . . 1 Repair 2 | . . . . . . . . . 1 . . . 1 Recycling Unit Hacks 1 | . 1 . . . . . . . . . . . . Report Inventory 1 | . 1 . . . . . . . . . . . . Scanalyzer 4 | . . . . . . . . 2 . . 2 . . Insert Component 2 | . . . . . . . . 1 . . 1 . . Analyze 2 | . . . . . . . . 1 . . 1 . . Garrison Access Hacks 5 | . . . . . . 1 . 1 1 . 1 . 1 Unlock Access 4 | . . . . . . 1 . . 1 . 1 . 1 Seal Access 1 | . . . . . . . . 1 . . . . . Unauthorized Hacks 22 | . 8 1 . . . 3 . 8 2 . . . . Terminals 19 | . 7 1 . . . 3 . 6 2 . . . . Assimilate 4 | . 2 . . . . . . 1 1 . . . . Botnet 11 | . 3 1 . . . 2 . 4 1 . . . . Detonate 1 | . . . . . . . . 1 . . . . . Operators 2 | . 1 . . . . 1 . . . . . . . Search 1 | . 1 . . . . . . . . . . . . Fabricators . | . . . . . . . . . . . . . . Repair Stations . | . . . . . . . . . . . . . . Recycling Units 1 | . 1 . . . . . . . . . . . . Tunnel 1 | . 1 . . . . . . . . . . . . Scanalyzers 2 | . . . . . . . . 2 . . . . . Extract 2 | . . . . . . . . 2 . . . . . Garrison Access . | . . . . . . . . . . . . . . Data Cores Recovered . | . . . . . . . . . . . . . . Used . | . . . . . . . . . . . . . . Hacking Detections 17 | . 4 1 . . . 1 . 5 3 . 1 . 2 Full Trace Events 3 | . 1 . . . . . . 2 . . . . . Feedback Events . | . . . . . . . . . . . . . . Feedback Blocked . | . . . . . . . . . . . . . . Robot Schematics Acquired 1 | . . . . . . . . . 1 . . . . Robots Built . | . . . . . . . . . . . . . . Matter . | . . . . . . . . . . . . . . Time . | . . . . . . . . . . . . . . Total Robot Build Rating . | . . . . . . . . . . . . . . Part Schematics Acquired 8 | . . . . . . . . 7 . . 1 . . Parts Built . | . . . . . . . . . . . . . . Matter . | . . . . . . . . . . . . . . Time . | . . . . . . . . . . . . . . Total Part Build Rating . | . . . . . . . . . . . . . . Parts Repaired 2 | . . . . . . . . . 1 . . . 1 Time 36 | . . . . . . . . . 22 . . . 14 Parts Recycled . | . . . . . . . . . . . . . . Recycled Matter . | . . . . . . . . . . . . . . Retrieved Matter . | . . . . . . . . . . . . . . Retrieved Components . | . . . . . . . . . . . . . . Parts Scanalyzed 2 | . . . . . . . . 1 . . 1 . . Part Schematics Acquired 2 | . . . . . . . . 1 . . 1 . . Parts Damaged . | . . . . . . . . . . . . . . Bothacking | -11 -10 -9 -9 -9 -8 -8 -8 -8 -7 -7 -7 -7 -7 ------------ Run | Scr Mat Mat Min Exi Min Mat Gar Mat Fac Gar Fac Gar Fac Used RIF Installer 2 | . . . . . . . 1 . . . . 1 . Command Fork 1 | . . . . . . . . . . . . 1 . Robots Hacked 7 | . . . . . . . . 1 . . . 5 1 Non-combat 1 | . . . . . . . . 1 . . . . . Combat 6 | . . . . . . . . . . . . 5 1 Robot Hacks Applied 12 | . . . . . . . . 4 . . . 7 1 parse_system 1 | . . . . . . . . 1 . . . . . check_alert 1 | . . . . . . . . 1 . . . . . purge_threat 1 | . . . . . . . . 1 . . . . . reprogram_traps 1 | . . . . . . . . 1 . . . . . spike_heat 1 | . . . . . . . . . . . . 1 . overload_power 1 | . . . . . . . . . . . . 1 . reboot_system 1 | . . . . . . . . . . . . . 1 go_dormant 1 | . . . . . . . . . . . . 1 . overwrite_iff 4 | . . . . . . . . . . . . 4 . Relay Couplers Released 20 | . . . . . . . 5 . . 7 . 8 . Machine Destruction 20 | . . . . . . . 5 . . 7 . 8 . Attached 15 | . . . . . . . 1 1 . 7 1 5 . Robots Rewired 1 | . . . . . . . . . 1 . . . . Allies Hacked 1 | . . . . . . . . . . . . 1 . Hacks Repelled . | . . . . . . . . . . . . . . Allies | -11 -10 -9 -9 -9 -8 -8 -8 -8 -7 -7 -7 -7 -7 -------- Run | Scr Mat Mat Min Exi Min Mat Gar Mat Fac Gar Fac Gar Fac Total Allies 9 | . . . 5 . . . . . 1 . . 3 . Largest Group 5 | . . . 5 5 3 . . . 1 . . 2 . Highest-Rated Group 81 | . . . 81 81 40 . . . 21 . . 32 . Highest-Rated Ally 31 | . . . 31 31 16 . . . 21 . . 16 . Total Orders 2 | . . . . . . . . . 2 . . . . STAY 1 | . . . . . . . . . 1 . . . . FOLLOW 1 | . . . . . . . . . 1 . . . . Ally Attacks 32 | . . . 1 . 10 . . . 6 . . 15 . Total Damage 332 | . . . 20 . 104 . . . 32 . . 176 . Kills 2 | . . . . . . . . . . . . 2 . Allies Corrupted . | . . . . . . . . . . . . . . Allies Melted . | . . . . . . . . . . . . . . Intel | -11 -10 -9 -9 -9 -8 -8 -8 -8 -7 -7 -7 -7 -7 ------- Run | Scr Mat Mat Min Exi Min Mat Gar Mat Fac Gar Fac Gar Fac Robot Analysis Total 5 | . 2 . . . . . . 3 . . . . . Derelict Logs Recovered 2 | . . . 2 . . . . . . . . . . Drone Launches . | . . . . . . . . . . . . . . Drone Recoveries . | . . . . . . . . . . . . . . Exploration | -11 -10 -9 -9 -9 -8 -8 -8 -8 -7 -7 -7 -7 -7 ------------- Run | Scr Mat Mat Min Exi Min Mat Gar Mat Fac Gar Fac Gar Fac Turns Passed 7187 | 78 371 198 454 264 378 68 176 664 412 2812 500 514 298 Spaces Moved 6229 | 51 407 259 673 268 430 139 182 916 451 853 722 491 387 Core 555 | 51 150 . . . . . . . 209 11 . 41 93 Treads . | . . . . . . . . . . . . . . Legs . | . . . . . . . . . . . . . . Wheels . | . . . . . . . . . . . . . . Hover . | . . . . . . . . . . . . . . Flight 5674 | . 257 259 673 268 430 139 182 916 242 842 722 450 294 Fastest Speed 35 | 50 37 37 37 37 37 37 37 37 37 37 37 37 35 Average Speed 47 | 89 59 39 37 70 57 37 37 39 71 43 38 43 52 Slowest Speed 150 | 100 150 117 37 117 117 37 37 120 150 120 120 120 100 Overloaded Moves . | . . . . . . . . . . . . . . Propulsion Burnouts . | . . . . . . . . . . . . . . Robots Hopped 19 | . . 1 6 . 4 . . 3 1 . . . 4 Cave-ins Triggered 2 | . . . . . . . . . . 2 . . . Exploration Rate (%) 42 | 4 63 24 91 61 81 13 48 58 8 57 15 61 10 Regions Visited 13 Branch Regions 3 Pre-discovered Areas 1 | . 1 . . . . . . . . . . . . Known Exits Taken 4 | . . . 1 . . 1 . . 1 . 1 . . Unknown Exits Taken 6 | 1 1 1 . 1 1 . . 1 . . . . . Scrap Searched 3 | . . . 1 . 2 . . . . . . . . Spaces Dug 65 | . 5 . . . . . . 41 1 8 3 . 7 Terrain Destroyed 242 | . 89 51 27 . . . . 56 1 8 3 . 7 Melee 38 | . . . . . . . . 19 1 8 3 . 7 Projectile . | . . . . . . . . . . . . . . AOE 204 | . 89 51 27 . . . . 37 . . . . . Terrain Rammed . | . . . . . . . . . . . . . . Walls Destroyed . | . . . . . . . . . . . . . . Machines Disabled . | . . . . . . . . . . . . . . Actions | -11 -10 -9 -9 -9 -8 -8 -8 -8 -7 -7 -7 -7 -7 --------- Run | Scr Mat Mat Min Exi Min Mat Gar Mat Fac Gar Fac Gar Fac Total 10024 | 64 482 324 833 344 532 149 289 1171 507 3200 914 747 468 Wait 3087 | . 27 24 123 70 76 1 23 203 22 2155 143 165 55 Move 6182 | 50 406 256 660 267 421 138 181 910 449 851 722 490 381 Hop 16 | . . 1 6 . 4 . . 2 1 . . . 2 Pick Up 26 | 3 4 2 2 . 1 1 2 1 1 1 2 . 6 Fast Attach 75 | 2 5 9 . 3 2 2 2 5 8 14 11 7 5 Attach 24 | . 3 . . . 1 1 3 2 . 8 5 . 1 Detach 15 | . . 1 . . . . . 2 1 7 4 . . Swap 11 | . . 1 . . . . . 3 1 4 1 . 1 Drop 59 | . . 9 2 4 2 1 4 8 1 9 8 2 9 Fire 165 | 9 37 21 36 . 25 5 2 3 9 6 . 11 1 Melee 136 | . . . . . . . . 32 11 47 18 21 7 Ram . | . . . . . . . . . . . . . . Kick . | . . . . . . . . . . . . . . Crush . | . . . . . . . . . . . . . . Escape Stasis 221 | . . . . . . . 72 . . 98 . 51 . Rewire 3 | . . . . . . . . . 3 . . . . Trap 4 | . . . 4 . . . . . . . . . . Miscellaneous . | . . . . . . . . . . . . . . Route ------- -11/Scrapyard -10/Materials (discovered 3 exits: *Mat / [*Min x2]) -9/Materials -9/Mines (discovered 3 exits: *Mat x2 / *Exi) -9/Exiles -8/Mines -8/Materials -8/Garrison -8/Materials -7/Factory -7/Garrison -7/Factory (discovered 2 exits: [*Fac] / Gar) -7/Garrison (discovered 2 exits: *Fac x2) -7/Factory (discovered 1 exit: Gar) History --------- Turn | Location | Event 3 | -11/Scrapyard | Discovered new exit (range 16) 79 | -11/Scrapyard | Entered Materials 300 | -10/Materials | Build established: Mutant 304 | -10/Materials | Lost 4 parts (1p3w) 336 | -10/Materials | Discovered new exit (range 16) 372 | -10/Materials | Discovered new exit (range 9) 419 | -10/Materials | Core integrity fell below 50% 444 | -10/Materials | Discovered new exit (range 14) 450 | -10/Materials | Entered another Materials area 450 | -9/Materials | Evolved 2 slots: Utility x2 508 | -9/Materials | Destroyed 7 combat bots 599 | -9/Materials | Discovered new exit (range 13) 648 | -9/Materials | Entered Mines 650 | -9/Mines | Met a Derelict who couldn't figure out how to use a Trap Extractor 705 | -9/Mines | Received a Rocket Launcher from a helpful Derelict 763 | -9/Mines | Found a hidden stash of uninstalled traps 787 | -9/Mines | Discovered new exit (range 8) 793 | -9/Mines | Discovered new exit (range 15) 803 | -9/Mines | Learned Materials interactive machine intel 871 | -9/Mines | Identified exit to Exiles 874 | -9/Mines | Assisted by bots powering up and referring to "LRC-V3" 893 | -9/Mines | Met a Derelict shopkeep closing up shop 1016 | -9/Mines | Deemed a non-threat by the Exiles lab entrance 1102 | -9/Mines | Entered Exiles 1102 | -9/Exiles | Accompanied by 5 allies 1111 | -9/Exiles | Met 8R-AWN 1118 | -9/Exiles | Met EX-HEX 1132 | -9/Exiles | Led the pair of lost Derelicts to a safe place 1206 | -9/Exiles | Met EX-BIN 1210 | -9/Exiles | Aligned with FarCom system 1210 | -9/Exiles | Given EX-Vault access code 1219 | -9/Exiles | Opened EX-Vault 1222 | -9/Exiles | Found Prototype Energy Cannon 1222 | -9/Exiles | Identified YOLO Cannon 1226 | -9/Exiles | Found Prototype Device 1226 | -9/Exiles | Identified Cloak of Protection 1264 | -9/Exiles | Warned to stay clear of 0b10 Research branches 1302 | -9/Exiles | Met EX-DEC 1347 | -9/Exiles | Discovered new exit (range 10) 1366 | -9/Exiles | Left Exiles lab with Cloak of Protection 1366 | -9/Exiles | Entered Mines 1366 | -8/Mines | Accompanied by 3 allies 1573 | -8/Mines | Discovered new exit (range 5) 1744 | -8/Mines | Entered Materials 1744 | -8/Materials | Evolved 2 slots: Utility x2 1745 | -8/Materials | Loaded intel: 19 interactive machine locations 1777 | -8/Materials | Identified exit to Garrison 1812 | -8/Materials | Entered Garrison 1814 | -8/Garrison | Installed Relay Interface Framework 1936 | -8/Garrison | Triggered checkpoint 1959 | -8/Garrison | Garrison Relay disabled 1985 | -8/Garrison | Discovered new exit (range 10) 1988 | -8/Garrison | Entered Materials 2406 | -8/Materials | Lost 3 parts (1n1u1w) 2561 | -8/Materials | Discovered new exit (range 3) 2652 | -8/Materials | Entered Factory 2652 | -7/Factory | Evolved 2 slots: Utility x2 2665 | -7/Factory | Build established: Hacker-Mutant 2789 | -7/Factory | Lost 3 parts (1n2u) 2964 | -7/Factory | Garrison activated, responded to threat 2977 | -7/Factory | Repaired Great Axe 3014 | -7/Factory | Lost 3 parts (3u) 3064 | -7/Factory | Identified exit to Garrison 3064 | -7/Factory | Entered Garrison 3296 | -7/Garrison | Build established: Mutant 3695 | -7/Garrison | Core integrity fell below 50% 3717 | -7/Garrison | Lost 3 parts (1p2n) 3800 | -7/Garrison | Triggered checkpoint 4274 | -7/Garrison | Triggered checkpoint 4345 | -7/Garrison | Garrison Relay disabled 4839 | -7/Garrison | Crushed by falling debris 4858 | -7/Garrison | Discovered new exit (range 8) 4888 | -7/Garrison | Garrison Relay disabled 4939 | -7/Garrison | Crushed by falling debris 4946 | -7/Garrison | Triggered checkpoint 5848 | -7/Garrison | Triggered checkpoint 5876 | -7/Garrison | Entered Factory 5900 | -7/Factory | Lost 4 parts (2n2u) 6030 | -7/Factory | Discovered new exit (range 15) 6350 | -7/Factory | Build established: Hacker-Mutant 6376 | -7/Factory | Identified exit to Garrison 6376 | -7/Factory | Entered Garrison 6514 | -7/Garrison | Triggered checkpoint 6574 | -7/Garrison | Garrison Relay disabled 6630 | -7/Garrison | Discovered new exit (range 10) 6694 | -7/Garrison | Triggered checkpoint 6708 | -7/Garrison | Triggered checkpoint 6738 | -7/Garrison | Triggered checkpoint 6779 | -7/Garrison | Core integrity fell below 20% 6805 | -7/Garrison | Discovered new exit (range 9) 6811 | -7/Garrison | Expanded RIF knowledge: Command Fork 6812 | -7/Garrison | Lost 5 parts (1p1n2u1w) 6820 | -7/Garrison | Triggered checkpoint 6853 | -7/Garrison | Garrison Relay disabled 6890 | -7/Garrison | Entered Factory 7063 | -7/Factory | Repaired Great Axe 7095 | -7/Factory | Identified exit to Garrison 7188 | -7/Factory | Destroyed by Y-54 Guardian with Flak Gun Last Messages --------------- >>Unlock Access door unlocked. 07095_ EXIT=UNLOCKED: GARRISON 07101_ Acquired Prototype Launcher. 07101_ Identified Prc. Grenade Launcher. 07103_ Dropped Prc. Grenade Launcher. 07104_ Discarded Relay Coupler [Demolisher]. 07104_ Acquired Target Analyzer. 07108_ Acquired Datajack. 07115_ Dropped Core Analyzer. 07116_ Acquired Prc. Grenade Launcher. 07117_ Dropped Weight Redist. System. 07118_ Acquired Prc. Grenade Launcher. 07135_ Dropped Datajack. 07136_ Acquired Remote Datajack. 07145_ Dropped Katana. 07180_ Jacked G-47 Trooper... >>reboot_system Initiating full reboot, ETC: 15. [Achievement: Factory Defaults] Map ----- +----------------------------------------------------+ | # ############## #????????????## | | # #????????????# #????????????## | | ?# ###################+###################### | | ?# | | ??# | | ??# | | ??# | | ??# | | ??###########+########## ############+######## | | ???????# #??# #??# # | | ???????# #??# #??# ] # | | ???????# #### #??# # " | | ???????# / #??# # " | | ???????# ####u #??# ] # " | | ???????# #??# #??# # | | ???????# #??# #??# # " | | ???????# #??# #??# # " | | ???????# [ #??# #??# # " | | ???????# #??# #??# # | | ???????# #??# #??# # | | ???????# #??# #??# # | | ???????##############??# #??################## | | ???????????????????????# #???????????????????? | | ???????????????????????# #???????????????????? | | ???????????????????????#a #???????????????????? | | ???????????????????????# @ +???????????????????? | | ???????????????????????# #???????????????????? | | ???????????????????????# g #???????????????????? | | ???????????????????????# #???????????????????? | | ???????????????????????# #???????????????????? | | ???????????????????????# #???????????????????? | | ???????????????????????# #???????????????????? | | ???????????????????????+ #???????????????????? | | ???????????????????????# #???????????????????? | | ???????????????????????# #???????????????????? | | ???????????????????????# #???????????????????? | | ??????????????????????? ???????????????????? | | ??????????????????????? ???????????????????? | | ??????????????????????? ???????????????????? | | ??????????????????????? ???????????????????? | | ??????????????????????? Y ?????????????????????? | | ?????????????????????????????????????????????????? | | ?????????????????????????????????????????????????? | | ?????????????????????????????????????????????????? | | ?????????????????????????????????????????????????? | | ?????????????????????????????????????????????????? | | ?????????????????????????????????????????????????? | | ?????????????????????????????????????????????????? | | ?????????????????????????????????????????????????? | | ?????????????????????????????????????????????????? | +----------------------------------------------------+ Best States ------------- Heat Dissipation 34 Energy Generation 14 Energy Capacity 265 Matter Stores 300 Matter Capacity 300 Sight Range 16 Robot Scan Range 10 Terrain Scan Density 10 ECM Strength 2 Cloak Strength 5 Additional Mass Support 6 Propulsion Shielding 66 Melee Speed Boost 40 Evasion (%) 63 Targeting Accuracy 24 Target Analysis 5 Matter Filtering 30 Offensive Hacking 20 Defensive Hacking 10 Relay Coupler Types 199 Relay Coupler Value 6 Item Schematics ----------------- Great Axe | -8/Materials | Scanalyzed Imp. Power Shielding | -8/Materials | Extracted Imp. Light Cannon | -8/Materials | Extracted Imp. Targeting Computer | -8/Materials | Extracted Hacking Suite | -8/Materials | Extracted Com. Battery | -8/Materials | Extracted Cesium-ion Thruster | -8/Materials | Hacked VTOL Module | -7/Factory | Scanalyzed Robot Schematics ------------------ H-55 Commando | -7/Factory | Hacked Fabricated ------------ Nothing Alien Tech Used ----------------- None Achievements -------------- Factory Defaults Watch This! Challenges ------------ None Game ------ Seed WarpFortressMachine Manual? 0 Play Time 01:31:25 Cumulative 89.5 hours Start 2020.10.03 @ 17:28:09 End 2020.10.03 @ 19:01:24 Sessions 1 Manual Loads 0 Difficulty Rogue Special Mode None Game No. 125 Rogue 101 Adventurer 22 Explorer 2 Win Type - Total 1 Types 1/0/0/0/0/0/0/0/0 Lore% 46 Gallery% 50 Achievement% 42 Wizard Run 0 Options --------- ASCII 0 Keyboard 0 Movement Numpad Keybinds 0 Fullscreen 1 Font 14/SmallcapsGlow Map View 84x54 Tactical HUD 1 Map Filters NONE Filters NONE Steam 1 RUN: 63955c86-b517-430b-93bd-5d7115f4702e